fUST/lending_fUST_20240813
["ID","MTS","AMOUNT","RATE_DAILY","PERIOD"]
[334731193,1723517445769,-151.0,0.0001389,2]
[334731194,1723517445778,-151.0,0.0001389,2]
[334731195,1723517445788,-151.0,0.0001389,2]
[334731196,1723517445798,-151.0,0.0001389,2]
[334731197,1723517445808,-151.0,0.0001389,2]
[334731198,1723517445817,-151.0,0.0001389,2]
[334731199,1723517445826,-151.0,0.0001389,2]
[334731200,1723517445836,-582.005225,0.0001389,2]
[334731201,1723517445846,-582.005225,0.0001389,2]
[334731202,1723517445855,-204.350256,0.0001389,2]
[334731203,1723517445865,-204.350256,0.0001389,2]
[334731204,1723517445875,-216.257464,0.0001389,2]
[334731205,1723517445883,-216.257464,0.0001389,2]
[334731206,1723517445894,-162.401706,0.0001389,2]
[334731207,1723517445903,-162.401706,0.0001389,2]
[334731208,1723517445913,-183.291109,0.0001389,2]
[334731209,1723517445923,-183.291109,0.0001389,2]
[334731210,1723517445936,-478.845477,0.0001389,2]
[334731211,1723517445945,-478.845477,0.0001389,2]
[334731212,1723517445955,-150.112233,0.000139,2]
[334731213,1723517445965,-267.9524887,0.00013945,2]
[334731215,1723517445975,-240.1955755,0.00013945,2]
[334731216,1723517445984,-500.0,0.00013971,2]
[334731217,1723517445994,-500.0,0.00013971,2]
[334731218,1723517446003,-565.98,0.00013972,2]
[334731219,1723517446012,-500.0,0.00013972,2]
[334731220,1723517446022,-500.0,0.00013972,2]
[334731221,1723517446031,-500.0,0.00013972,2]
[334731222,1723517446042,-170.21343717,0.00013972,2]
[334731223,1723517446052,-500.0,0.00013972,2]
[334731224,1723517446062,-500.0,0.00013972,2]
[334731225,1723517446071,-522.23,0.00013972,2]
[334731226,1723517446081,-500.0,0.00013972,2]
[334731227,1723517446090,-625.24,0.00013972,2]
[334731228,1723517446099,-500.0,0.00013972,2]
[334731229,1723517446109,-500.0,0.00013972,2]
[334731230,1723517446119,-500.0,0.00013972,2]
[334731231,1723517446128,-500.0,0.00013972,2]
[334731232,1723517446138,-500.0,0.00013972,2]
[334731233,1723517446147,-500.0,0.00013972,2]
[334731234,1723517446157,-514.03155378,0.00013972,2]
[334731235,1723517446167,-500.0,0.00013972,2]
[334731236,1723517446176,-500.0,0.00013972,2]
[334731237,1723517446189,-685.32,0.00013972,2]
[334731238,1723517446203,-500.0,0.00013972,2]
[334731239,1723517446217,-500.0,0.00013972,2]
[334731240,1723517446231,-1945.33,0.00013972,2]
[334731241,1723517446245,-507.06958315,0.00013972,2]
[334731242,1723517446255,-709.25,0.00013972,2]
[334731243,1723517446266,-576.87,0.00013972,2]
[334731244,1723517446278,-500.0,0.00013972,2]
[334731246,1723517446290,-890.95,0.00013972,2]
[334731247,1723517446302,-950.73,0.00013972,2]
[334731248,1723517446314,-500.0,0.00013972,2]
[334731249,1723517446327,-1152.8,0.00013972,2]
[334731250,1723517446339,-695.871965,0.00013972,2]
[334731251,1723517446352,-695.871965,0.00013972,2]
[334731252,1723517446365,-627.74,0.00013972,2]
[334731253,1723517446378,-807.93,0.00013972,2]
[334731254,1723517446390,-500.0,0.00013972,2]
[334731255,1723517446401,-3330.38,0.00013972,2]
[334731256,1723517446413,-3131.99,0.00013972,2]
[334731257,1723517446424,-459.696509,0.00013972,2]
[334731258,1723517446439,-1123.4,0.00013972,2]
[334731259,1723517446451,-500.0,0.00013972,2]
[334731260,1723517446462,-459.696509,0.00013972,2]
[334731261,1723517446473,-991.98,0.00013972,2]
[334731262,1723517446484,-500.0,0.00013972,2]
[334731263,1723517446494,-1074.04,0.00013972,2]
[334731264,1723517446506,-863.9,0.00013972,2]
[334731265,1723517446517,-366.678675,0.00013972,2]
[334731266,1723517446531,-366.678675,0.00013972,2]
[334731267,1723517446544,-640.42,0.00013972,2]
[334731268,1723517446556,-3032.29,0.00013972,2]
[334731269,1723517446567,-500.0,0.00013972,2]
[334731270,1723517446580,-388.58388227,0.00013972,2]
[334731271,1723517446593,-500.0,0.00013972,2]
[334731272,1723517446605,-500.0,0.00013972,2]
[334731273,1723517446618,-531.79,0.00013972,2]
[334731274,1723517446628,-711.19,0.00013972,2]
[334731275,1723517446639,-1137.19,0.00013972,2]
[334731276,1723517446649,-541.3,0.00013972,2]
[334731277,1723517446659,-500.0,0.00013972,2]
[334731278,1723517446671,-500.0,0.00013972,2]
[334731279,1723517446685,-1140.12,0.00013972,2]
[334731280,1723517446697,-500.0,0.00013972,2]
[334731281,1723517446709,-621.42,0.00013972,2]
[334731282,1723517446719,-551.44,0.00013972,2]
[334731283,1723517446731,-500.0,0.00013972,2]
[334731284,1723517446742,-500.0,0.00013972,2]
[334731285,1723517446755,-500.0,0.00013972,2]
[334731286,1723517446769,-1243.47,0.00013972,2]
[334731287,1723517446779,-221.81482,0.00013972,2]
[334731288,1723517446790,-500.0,0.00013972,2]
[334731289,1723517446801,-502.77850894,0.00013972,2]
[334731290,1723517446812,-1468.89,0.00013972,2]
[334731291,1723517446823,-500.0,0.00013972,2]
[334731292,1723517446834,-500.0,0.00013972,2]
[334731293,1723517446845,-221.81482,0.00013972,2]
[334731294,1723517446857,-151.0,0.00013972,2]
[334731295,1723517446870,-500.0,0.00013972,2]
[334731296,1723517446884,-1132.47,0.00013972,2]
[334731297,1723517446895,-500.0,0.00013972,2]
[334731298,1723517446907,-500.0,0.00013972,2]
[334731299,1723517446919,-595.88,0.00013972,2]
[334731300,1723517446931,-5548.98,0.00013972,2]
[334731301,1723517446943,-617.32,0.00013972,2]
[334731302,1723517446954,-605.27904,0.00013972,2]
[334731303,1723517446966,-2034.17,0.00013972,2]
[334731304,1723517446977,-824.73,0.00013972,2]
[334731305,1723517446988,-605.27904,0.00013972,2]
[334731306,1723517446999,-524.4,0.00013972,2]
[334731307,1723517447010,-500.0,0.00013972,2]
[334731308,1723517447022,-3018.76,0.00013972,2]
[334731309,1723517447033,-151.0,0.00013972,2]
[334731310,1723517447045,-1083.48,0.00013972,2]
[334731311,1723517447056,-548.71,0.00013972,2]
[334731312,1723517447067,-500.0,0.00013972,2]
[334731313,1723517447078,-500.0,0.00013972,2]
[334731314,1723517447089,-6247.71,0.00013972,2]
[334731315,1723517447100,-871.11,0.00013972,2]
[334731316,1723517447110,-530.5261,0.00013972,2]
[334731317,1723517447121,-953.67,0.00013972,2]
[334731318,1723517447132,-267.9524887,0.00014,2]
[334731319,1723517447144,-267.9524887,0.00014,2]
[334731320,1723517447155,-500.0,0.0001405,2]
[334731321,1723517447166,-500.0,0.0001405,2]
[334731322,1723517447177,-500.0,0.0001405,2]
[334731323,1723517447188,-500.0,0.0001405,2]
[334731324,1723517447199,-500.0,0.0001405,2]
[334731325,1723517447210,-500.0,0.0001405,2]
[334731326,1723517447222,-828.63,0.0001405,2]
[334731327,1723517447233,-1655.71,0.0001405,2]
[334731328,1723517447245,-1285.53,0.0001405,2]
[334731329,1723517447257,-500.0,0.0001405,2]
[334731330,1723517447268,-888.52,0.0001405,2]
[334731331,1723517447279,-500.0,0.0001405,2]
[334731332,1723517447289,-500.0,0.00014052,2]
[334731333,1723517447301,-500.0,0.00014052,2]
[334731334,1723517447313,-500.0,0.00014052,2]
[334731335,1723517447324,-500.0,0.00014052,2]
[334731336,1723517447335,-500.0,0.00014062,2]
[334731337,1723517447347,-500.0,0.00014063,2]
[334731338,1723517447359,-501.21147258,0.00014063,2]
[334731339,1723517447371,-631.47498351,0.00014063,2]
[334731340,1723517447383,-502.96860766,0.00014063,2]
[334731341,1723517447396,-500.0,0.00014063,2]
[334731342,1723517447409,-327.2198573,0.00014063,2]
[334731343,1723517447422,-500.0,0.00014063,2]
[334731344,1723517447435,-267.9801969,0.000141,2]
[334731345,1723517447448,-267.8728175,0.000141,2]
[334731346,1723517447461,-267.9524887,0.000141,2]
[334731347,1723517447472,-267.9524887,0.000141,2]
[334731348,1723517447484,-1662.64347148,0.00014124,2]
[334731349,1723517447495,-151.0,0.00014144,2]
[334731350,1723517447506,-151.420384,0.00014144,2]
[334731351,1723517447517,-287.84906606,0.00014152,2]
[334731352,1723517447528,-500.0,0.00014152,2]
[334731353,1723517447538,-500.0,0.00014152,2]
[334731354,1723517447549,-500.0,0.00014153,2]
[334731355,1723517447559,-500.0,0.00014153,2]
[334731356,1723517447570,-500.0,0.00014153,2]
[334731357,1723517447581,-500.0,0.00014153,2]
[334731358,1723517447591,-500.0,0.00014153,2]
[334731359,1723517447602,-500.0,0.00014153,2]
[334731360,1723517447613,-500.0,0.00014153,2]
[334731361,1723517447626,-154.282269,0.00014153,2]
[334731362,1723517447638,-500.0,0.00014153,2]
[334731363,1723517447649,-506.33954523,0.00014153,2]
[334731364,1723517447660,-500.0,0.00014153,2]
[334731365,1723517447671,-151.0,0.00014153,2]
[334731366,1723517447683,-500.0,0.00014153,2]
[334731367,1723517447694,-507.12995694,0.00014153,2]
[334731368,1723517447705,-500.0,0.00014153,2]
[334731369,1723517447716,-500.0,0.00014153,2]
[334731370,1723517447729,-151.0,0.00014153,2]
[334731371,1723517447741,-151.0,0.00014153,2]
[334731372,1723517447753,-582.005225,0.00014153,2]
[334731373,1723517447768,-582.005225,0.00014153,2]
[334731374,1723517447778,-204.350256,0.00014153,2]
[334731375,1723517447788,-204.350256,0.00014153,2]
[334731376,1723517447799,-500.0,0.00014153,2]
[334731377,1723517447811,-1052.17,0.00014153,2]
[334731378,1723517447822,-216.257464,0.00014153,2]
[334731379,1723517447833,-216.257464,0.00014153,2]
[334731380,1723517448018,-6340.07,0.00014153,2]
[334731381,1723517448030,-500.0,0.00014153,2]
[334731382,1723517448040,-500.0,0.00014153,2]
[334731383,1723517448050,-1240.2,0.00014153,2]
[334731384,1723517448060,-500.0,0.00014153,2]
[334731385,1723517448070,-2046.05,0.00014153,2]
[334731386,1723517448079,-500.0,0.00014153,2]
[334731387,1723517448088,-162.401706,0.00014153,2]
[334731388,1723517448098,-162.401706,0.00014153,2]
[334731389,1723517448108,-775.42,0.00014153,2]
[334731390,1723517448118,-183.291109,0.00014153,2]
[334731391,1723517448127,-183.291109,0.00014153,2]
[334731392,1723517448137,-478.845477,0.00014153,2]
[334731393,1723517448146,-478.845477,0.00014153,2]
[334731394,1723517448156,-500.0,0.00014154,2]
[334731395,1723517448166,-500.0,0.00014154,2]
[334731396,1723517448175,-622.76,0.00014154,2]
[334731397,1723517448189,-151.0,0.00014154,2]
[334731398,1723517448199,-680.23,0.00014154,2]
[334731399,1723517448208,-500.0,0.00014154,2]
[334731400,1723517448218,-599.39,0.00014154,2]
[334731401,1723517448228,-500.0,0.00014154,2]
[334731402,1723517448238,-500.0,0.00014154,2]
[334731403,1723517448247,-500.0,0.00014154,2]
[334731404,1723517448258,-151.0,0.00014154,2]
[334731405,1723517448268,-151.0,0.00014154,2]
[334731406,1723517448277,-267.631965,0.00014154,2]
[334731407,1723517448287,-267.631965,0.00014154,2]
[334731408,1723517448296,-500.0,0.00014154,2]
[334731409,1723517448306,-151.0,0.00014154,2]
[334731410,1723517448316,-769.19,0.00014154,2]
[334731411,1723517448326,-151.0,0.00014154,2]
[334731412,1723517448335,-500.0,0.00014154,2]
[334731413,1723517448344,-500.0,0.00014154,2]
[334731414,1723517448354,-500.0,0.00014154,2]
[334731415,1723517448363,-403.78973464,0.00014154,2]
[334731416,1723517448373,-570.97,0.00014154,2]
[334731417,1723517448383,-536.81,0.00014154,2]
[334731418,1723517448392,-500.0,0.00014154,2]
[334731419,1723517448405,-500.0,0.00014154,2]
[334731420,1723517448415,-497.95581423,0.00014154,2]
[334731421,1723517448424,-500.0,0.00014154,2]
[334731422,1723517448435,-500.0,0.00014154,2]
[334731423,1723517448444,-817.14,0.00014154,2]
[334731424,1723517448453,-500.0,0.00014154,2]
[334731425,1723517448462,-500.0,0.00014154,2]
[334731426,1723517448472,-500.0,0.00014154,2]
[334731427,1723517448481,-500.0,0.00014154,2]
[334731428,1723517448490,-504.75071887,0.00014154,2]
[334731429,1723517448500,-500.0,0.00014154,2]
[334731430,1723517448509,-500.0,0.00014154,2]
[334731431,1723517448518,-573.3,0.00014154,2]
[334731432,1723517448529,-500.0,0.00014154,2]
[334731433,1723517448538,-905.74,0.00014154,2]
[334731434,1723517448547,-841.83,0.00014154,2]
[334731435,1723517448557,-1086.07,0.00014154,2]
[334731436,1723517448566,-504.48336683,0.00014154,2]
[334731437,1723517448575,-500.0,0.00014154,2]
[334731438,1723517448585,-500.0,0.00014154,2]
[334731439,1723517448594,-500.0,0.00014154,2]
[334731440,1723517448603,-592.44,0.00014154,2]
[334731441,1723517448613,-500.0,0.00014154,2]
[334731442,1723517448622,-1119.84,0.00014154,2]
[334731443,1723517448632,-500.0,0.00014154,2]
[334731444,1723517448641,-512.12221757,0.00014154,2]
[334731445,1723517448650,-1111.2,0.00014154,2]
[334731446,1723517448660,-500.0,0.00014154,2]
[334731447,1723517448669,-500.0,0.00014154,2]
[334731448,1723517448679,-504.58301167,0.00014154,2]
[334731449,1723517448700,-507.34383413,0.00014154,2]
[334731450,1723517448710,-558.13731337,0.00014154,2]
[334731451,1723517448720,-235.05888984,0.00014154,2]
[334731452,1723517448730,-500.0,0.00014154,2]
[334731453,1723517448739,-1671.66,0.00014154,2]
[334731454,1723517448749,-500.0,0.00014154,2]
[334731455,1723517448760,-973.55,0.00014154,2]
[334731456,1723517448770,-754.38,0.00014154,2]
[334731457,1723517448779,-505.59683593,0.00014154,2]
[334731458,1723517448788,-1358.39,0.00014154,2]
[334731459,1723517448798,-500.0,0.00014154,2]
[334731460,1723517448808,-228.49623559,0.00014154,2]
[334731461,1723517448818,-531.93,0.00014154,2]
[334731462,1723517448829,-538.07066586,0.00014154,2]
[334731463,1723517448840,-505.12008702,0.00014154,2]
[334731464,1723517448851,-500.0,0.00014154,2]
[334731465,1723517448861,-500.0,0.00014154,2]
[334731466,1723517448871,-503.33068561,0.00014154,2]
[334731467,1723517448880,-513.9837574,0.00014154,2]
[334731468,1723517448889,-285.46548247,0.00014154,2]
[334731469,1723517448899,-530.5261,0.00014154,2]
[334731470,1723517448909,-500.0,0.00014162,2]
[334731471,1723517448918,-500.0,0.00014163,2]
[334731472,1723517448927,-151.0,0.00014164,2]
[334731473,1723517448938,-500.0,0.00014164,2]
[334731474,1723517448947,-500.0,0.00014164,2]
[334731475,1723517448957,-500.0,0.00014164,2]
[334731476,1723517448966,-500.0,0.00014164,2]
[334731477,1723517448976,-510.71182565,0.00014164,2]
[334731478,1723517448986,-505.57724903,0.00014164,2]
[334731479,1723517448996,-221.81482,0.00014164,2]
[334731480,1723517449005,-221.81482,0.00014164,2]
[334731481,1723517449014,-176.635772,0.00014164,2]
[334731482,1723517449023,-605.27904,0.00014164,2]
[334731483,1723517449035,-605.27904,0.00014164,2]
[334731484,1723517449046,-221.724446,0.00014164,2]
[334731485,1723517449056,-200.0,0.00014173,2]
[334731486,1723517449065,-150.112233,0.000142,2]
[334731487,1723517449075,-4907.80246141,0.00014223,2]
[334731488,1723517449084,-500.0,0.00014235,2]
[334731489,1723517449093,-500.0,0.00014235,2]
[334731490,1723517449103,-40000.0,0.00014237,2]
[334731491,1723517449112,-169.134639,0.00014237,2]
[334731492,1723517449122,-695.871965,0.00014237,2]
[334731493,1723517449132,-695.871965,0.00014237,2]
[334731494,1723517449143,-459.696509,0.00014237,2]
[334731495,1723517449153,-459.696509,0.00014237,2]
[334731496,1723517449162,-366.678675,0.00014237,2]
[334731497,1723517449172,-366.678675,0.00014237,2]
[334731498,1723517449181,-500.0,0.00014245,2]
[334731499,1723517449199,-151.0,0.00014246,2]
[334731500,1723517449209,-565.98,0.00014246,2]
[334731501,1723517449218,-509.33646994,0.00014246,2]
[334731502,1723517449228,-506.10342775,0.00014246,2]
[334731503,1723517449237,-500.0,0.00014246,2]
[334731504,1723517449247,-500.0,0.00014246,2]
[334731505,1723517449258,-500.0,0.00014246,2]
[334731506,1723517449267,-522.23,0.00014246,2]
[334731507,1723517449276,-500.0,0.00014246,2]
[334731508,1723517449286,-625.24,0.00014246,2]
[334731509,1723517449297,-500.0,0.00014246,2]
[334731510,1723517449308,-151.0,0.00014246,2]
[334731511,1723517449319,-500.0,0.00014246,2]
[334731512,1723517449329,-506.63667381,0.00014246,2]
[334731513,1723517449340,-500.0,0.00014246,2]
[334731514,1723517449350,-500.0,0.00014246,2]
[334731515,1723517449359,-151.0,0.00014246,2]
[334731516,1723517449369,-500.0,0.00014246,2]
[334731517,1723517449379,-500.0,0.00014246,2]
[334731518,1723517449388,-151.0,0.00014246,2]
[334731519,1723517449398,-582.005225,0.00014246,2]
[334731520,1723517449408,-685.32,0.00014246,2]
[334731521,1723517449418,-582.005225,0.00014246,2]
[334731522,1723517449427,-204.350256,0.00014246,2]
[334731523,1723517449438,-411.76147416,0.00014246,2]
[334731524,1723517449446,-204.350256,0.00014246,2]
[334731525,1723517449456,-500.0,0.00014246,2]
[334731526,1723517449465,-1945.33,0.00014246,2]
[334731527,1723517449474,-709.25,0.00014246,2]
[334731528,1723517449484,-576.87,0.00014246,2]
[334731529,1723517449493,-509.58927145,0.00014246,2]
[334731530,1723517449503,-890.95,0.00014246,2]
[334731531,1723517449513,-950.73,0.00014246,2]
[334731532,1723517449522,-500.0,0.00014246,2]
[334731533,1723517449531,-1152.8,0.00014246,2]
[334731534,1723517449540,-216.257464,0.00014246,2]
[334731535,1723517449550,-216.257464,0.00014246,2]
[334731536,1723517449559,-627.74,0.00014246,2]
[334731537,1723517449569,-807.93,0.00014246,2]
[334731538,1723517449578,-500.0,0.00014246,2]
[334731539,1723517449589,-3330.38,0.00014246,2]
[334731540,1723517449600,-3131.99,0.00014246,2]
[334731541,1723517449612,-1123.4,0.00014246,2]
[334731542,1723517449621,-500.0,0.00014246,2]
[334731543,1723517449630,-991.98,0.00014246,2]
[334731544,1723517449639,-500.0,0.00014246,2]
[334731545,1723517449649,-1074.04,0.00014246,2]
[334731546,1723517449660,-863.9,0.00014246,2]
[334731547,1723517449669,-640.42,0.00014246,2]
[334731548,1723517449679,-3032.29,0.00014246,2]
[334731549,1723517449690,-500.0,0.00014246,2]
[334731550,1723517449699,-500.0,0.00014246,2]
[334731551,1723517449709,-500.0,0.00014246,2]
[334731552,1723517449719,-531.79,0.00014246,2]
[334731553,1723517449729,-711.19,0.00014246,2]
[334731554,1723517449739,-162.401706,0.00014246,2]
[334731555,1723517449748,-1137.19,0.00014246,2]
[334731556,1723517449760,-541.3,0.00014246,2]
[334731557,1723517449770,-162.401706,0.00014246,2]
[334731558,1723517449780,-500.0,0.00014246,2]
[334731559,1723517449790,-183.291109,0.00014246,2]
[334731560,1723517449799,-183.291109,0.00014246,2]
[334731561,1723517449809,-1140.12,0.00014246,2]
[334731562,1723517449818,-500.0,0.00014246,2]
[334731563,1723517449827,-621.42,0.00014246,2]
[334731564,1723517449839,-551.44,0.00014246,2]
[334731565,1723517449848,-478.845477,0.00014246,2]
[334731566,1723517449858,-500.0,0.00014246,2]
[334731567,1723517449869,-478.845477,0.00014246,2]
[334731568,1723517449879,-500.0,0.00014246,2]
[334731569,1723517449890,-500.0,0.00014246,2]
[334731570,1723517449899,-1243.47,0.00014246,2]
[334731571,1723517449911,-500.0,0.00014246,2]
[334731572,1723517449921,-1468.89,0.00014246,2]
[334731573,1723517449930,-500.0,0.00014246,2]
[334731574,1723517449942,-500.0,0.00014246,2]
[334731575,1723517449951,-532.94554107,0.00014246,2]
[334731576,1723517449961,-1132.47,0.00014246,2]
[334731577,1723517449971,-500.0,0.00014246,2]
[334731578,1723517449981,-500.0,0.00014246,2]
[334731579,1723517449992,-595.88,0.00014246,2]
[334731580,1723517450002,-5548.98,0.00014246,2]
[334731581,1723517450013,-617.32,0.00014246,2]
[334731582,1723517450022,-2034.17,0.00014246,2]
[334731583,1723517450032,-824.73,0.00014246,2]
[334731584,1723517450043,-524.4,0.00014246,2]
[334731585,1723517450054,-500.0,0.00014246,2]
[334731586,1723517450063,-3018.76,0.00014246,2]
[334731587,1723517450074,-1083.48,0.00014246,2]
[334731588,1723517450085,-548.71,0.00014246,2]
[334731589,1723517450095,-482.43252552,0.00014246,2]
[334731590,1723517450105,-500.0,0.00014246,2]
[334731591,1723517450114,-6247.71,0.00014246,2]
[334731592,1723517450123,-871.11,0.00014246,2]
[334731593,1723517450134,-953.67,0.00014246,2]
[334731594,1723517450145,-530.5261,0.00014246,2]
[334731595,1723517450155,-173.599604,0.00014247,2]
[334731596,1723517450166,-204.043608,0.00014247,2]
[334731597,1723517450175,-500.0,0.00014324,2]
[334731598,1723517450185,-359.4979327,0.00014324,2]
[334731599,1723517450194,-500.0,0.00014324,2]
[334731600,1723517450203,-500.0,0.00014324,2]
[334731601,1723517450213,-500.0,0.00014324,2]
[334731602,1723517450223,-500.0,0.00014324,2]
[334731603,1723517450233,-828.63,0.00014324,2]
[334731604,1723517450242,-1655.71,0.00014324,2]
[334731605,1723517450252,-1285.53,0.00014324,2]
[334731606,1723517450260,-888.52,0.00014324,2]
[334731607,1723517450270,-500.0,0.00014336,2]
[334731608,1723517450279,-500.0,0.00014337,2]
[334731609,1723517450288,-151.0,0.00014337,2]
[334731610,1723517450297,-151.0,0.00014337,2]
[334731611,1723517450307,-267.631965,0.00014337,2]
[334731612,1723517450316,-267.631965,0.00014337,2]
[334731613,1723517450326,-151.0,0.00014337,2]
[334731614,1723517450336,-151.0,0.00014337,2]
[334731615,1723517450346,-500.0,0.00014427,2]
[334731616,1723517450357,-500.0,0.00014427,2]
[334731617,1723517450368,-500.0,0.00014427,2]
[334731618,1723517450378,-500.0,0.00014427,2]
[334731619,1723517450389,-376.03971067,0.00014427,2]
[334731620,1723517450399,-500.0,0.00014427,2]
[334731621,1723517450411,-500.0,0.00014427,2]
[334731622,1723517450423,-500.0,0.00014427,2]
[334731623,1723517450433,-500.0,0.00014427,2]
[334731624,1723517450444,-500.0,0.00014427,2]
[334731625,1723517450456,-500.0,0.00014427,2]
[334731626,1723517450465,-1052.17,0.00014427,2]
[334731627,1723517450475,-6340.07,0.00014427,2]
[334731628,1723517450484,-500.0,0.00014427,2]
[334731629,1723517450493,-500.0,0.00014427,2]
[334731630,1723517450503,-1240.2,0.00014427,2]
[334731631,1723517450512,-500.0,0.00014427,2]
[334731632,1723517450521,-2046.05,0.00014427,2]
[334731633,1723517450530,-514.22688011,0.00014427,2]
[334731634,1723517450539,-775.42,0.00014427,2]
[334731635,1723517450548,-221.81482,0.00014427,2]
[334731636,1723517450558,-221.81482,0.00014427,2]
[334731637,1723517450567,-605.27904,0.00014427,2]
[334731638,1723517450576,-605.27904,0.00014427,2]
[334731639,1723517450585,-500.0,0.00014428,2]
[334731640,1723517450594,-622.01832579,0.00014428,2]
[334731641,1723517450603,-622.76,0.00014428,2]
[334731642,1723517450613,-680.23,0.00014428,2]
[334731643,1723517450622,-500.0,0.00014428,2]
[334731644,1723517450631,-599.39,0.00014428,2]
[334731645,1723517450641,-500.0,0.00014428,2]
[334731646,1723517450650,-500.0,0.00014428,2]
[334731647,1723517450660,-500.0,0.00014428,2]
[334731648,1723517450669,-769.19,0.00014428,2]
[334731649,1723517450678,-500.0,0.00014428,2]
[334731650,1723517450688,-500.0,0.00014428,2]
[334731651,1723517450698,-570.97,0.00014428,2]
[334731652,1723517450707,-536.81,0.00014428,2]
[334731653,1723517450717,-500.0,0.00014428,2]
[334731654,1723517450727,-500.0,0.00014428,2]
[334731655,1723517450736,-500.0,0.00014428,2]
[334731656,1723517450746,-500.0,0.00014428,2]
[334731657,1723517450756,-817.14,0.00014428,2]
[334731658,1723517450768,-500.0,0.00014428,2]
[334731659,1723517450777,-500.0,0.00014428,2]
[334731660,1723517450786,-500.0,0.00014428,2]
[334731661,1723517450796,-500.0,0.00014428,2]
[334731662,1723517450805,-500.0,0.00014428,2]
[334731663,1723517450815,-500.0,0.00014428,2]
[334731664,1723517450826,-573.3,0.00014428,2]
[334731665,1723517450839,-500.0,0.00014428,2]
[334731666,1723517450850,-905.74,0.00014428,2]
[334731667,1723517450861,-841.83,0.00014428,2]
[334731668,1723517450870,-1086.07,0.00014428,2]
[334731669,1723517450879,-500.0,0.00014428,2]
[334731670,1723517450889,-500.0,0.00014428,2]
[334731671,1723517450898,-500.0,0.00014428,2]
[334731672,1723517450908,-592.44,0.00014428,2]
[334731673,1723517450921,-1119.84,0.00014428,2]
[334731674,1723517450931,-500.0,0.00014428,2]
[334731675,1723517450942,-1111.2,0.00014428,2]
[334731676,1723517450951,-500.0,0.00014428,2]
[334731677,1723517450962,-500.0,0.00014428,2]
[334731678,1723517450972,-500.0,0.00014428,2]
[334731679,1723517450984,-1671.66,0.00014428,2]
[334731680,1723517450993,-500.0,0.00014428,2]
[334731681,1723517451002,-973.55,0.00014428,2]
[334731682,1723517451014,-754.38,0.00014428,2]
[334731683,1723517451024,-1358.39,0.00014428,2]
[334731684,1723517451035,-500.0,0.00014428,2]
[334731685,1723517451047,-531.93,0.00014428,2]
[334731686,1723517451057,-285.59539038,0.00014437,2]
[334731687,1723517451186,-509.28746645,0.00014438,2]
[334731688,1723517451196,-500.0,0.00014438,2]
[334731689,1723517451206,-500.0,0.00014438,2]
[334731690,1723517451216,-500.0,0.00014438,2]
[334731691,1723517451226,-565.98,0.0001452,2]
[334731692,1723517451237,-500.0,0.0001452,2]
[334731693,1723517451249,-500.0,0.0001452,2]
[334731694,1723517451260,-500.0,0.0001452,2]